lending/lending_fUSD_20260306
["ID","MTS","AMOUNT","RATE_DAILY","PERIOD"]
[407796173,1772805067858,-496.10721813,0.00045528,30]
[407796174,1772805067867,-259.39398879,0.00045528,30]
[407796175,1772805067877,-196.401106,0.00045528,30]
[407796176,1772805067886,-150.0,0.00045532,120]
[407796177,1772805067899,-150.0,0.0004554,30]
[407796178,1772805067908,-150.0,0.00045548,30]
[407796179,1772805067917,-178.56416906,0.00045549,30]
[407796180,1772805067928,-159.49661076,0.00045549,30]
[407796181,1772805067938,-237.39121081,0.00045549,30]
[407796182,1772805067948,-496.10721813,0.00045549,30]
[407796183,1772805067957,-259.39398879,0.00045549,30]
[407796184,1772805067967,-196.401106,0.00045549,30]
[407796185,1772805067979,-150.0,0.00045561,30]
[407796186,1772805067988,-150.0,0.00045563,30]
[407796187,1772805067999,-150.0,0.00045563,30]
[407796188,1772805068008,-150.0,0.00045566,30]
[407796189,1772805068017,-150.0,0.00045566,30]
[407796190,1772805068026,-178.56416906,0.00045571,30]
[407796191,1772805068035,-159.49661076,0.00045571,30]
[407796192,1772805068044,-237.39121081,0.00045571,30]
[407796193,1772805068053,-150.0,0.00045571,30]
[407796194,1772805068063,-496.10721813,0.00045571,30]
[407796195,1772805068072,-259.39398879,0.00045571,30]
[407796196,1772805068081,-196.401106,0.00045571,30]
[407796197,1772805068090,-155.51231892,0.00045586,120]
[407796198,1772805068099,-150.0,0.00045586,30]
[407796199,1772805068108,-178.56416906,0.00045593,30]
[407796200,1772805068118,-159.49661076,0.00045593,30]
[407796201,1772805068127,-237.39121081,0.00045593,30]
[407796202,1772805068136,-496.10721813,0.00045593,30]
[407796203,1772805068146,-259.39398879,0.00045593,30]
[407796204,1772805068155,-196.401106,0.00045593,30]
[407796205,1772805068164,-1000.0,0.00045596,30]
[407796206,1772805068173,-1003.11,0.00045597,120]
[407796207,1772805068183,-150.0,0.00045599,30]
[407796208,1772805068192,-150.0,0.00045599,30]
[407796209,1772805068201,-150.0,0.00045605,30]
[407796210,1772805068210,-150.0,0.00045609,30]
[407796211,1772805068219,-178.56416906,0.00045614,30]
[407796212,1772805068228,-159.49661076,0.00045614,30]
[407796213,1772805068237,-237.39121081,0.00045614,30]
[407796214,1772805068247,-496.10721813,0.00045614,30]
[407796215,1772805068256,-259.39398879,0.00045614,30]
[407796216,1772805068266,-196.401106,0.00045614,30]
[407796217,1772805068275,-746.0,0.00045617,120]
[407796218,1772805068284,-150.0,0.00045624,30]
[407796219,1772805068293,-150.0,0.00045624,30]
[407796220,1772805068303,-150.0,0.00045632,30]
[407796221,1772805068314,-178.56416906,0.00045636,30]
[407796222,1772805068323,-159.49661076,0.00045636,30]
[407796223,1772805068334,-237.39121081,0.00045636,30]
[407796224,1772805068343,-496.10721813,0.00045636,30]
[407796225,1772805068352,-259.39398879,0.00045636,30]
[407796226,1772805068361,-196.401106,0.00045636,30]
[407796227,1772805068370,-150.0,0.00045637,30]
[407796228,1772805068380,-150.0,0.00045646,30]
[407796229,1772805068389,-150.0,0.0004565,30]
[407796230,1772805068398,-150.0,0.00045655,30]
[407796231,1772805068407,-150.0,0.00045656,30]
[407796232,1772805068417,-178.56416906,0.00045658,30]
[407796233,1772805068426,-159.49661076,0.00045658,30]
[407796234,1772805068439,-237.39121081,0.00045658,30]
[407796235,1772805068448,-496.10721813,0.00045658,30]
[407796236,1772805068458,-259.39398879,0.00045658,30]
[407796237,1772805068467,-196.401106,0.00045658,30]
[407796238,1772805068476,-549.11213581,0.0004566,120]
[407796239,1772805068486,-150.0,0.00045675,30]
[407796240,1772805068497,-150.0,0.00045678,30]
[407796241,1772805068507,-178.56416906,0.00045679,30]
[407796242,1772805068515,-159.49661076,0.00045679,30]
[407796243,1772805068525,-237.39121081,0.00045679,30]
[407796244,1772805068534,-496.10721813,0.00045679,30]
[407796245,1772805068543,-259.39398879,0.00045679,30]
[407796246,1772805068552,-196.401106,0.00045679,30]
[407796247,1772805068561,-150.0,0.00045682,30]
[407796248,1772805068571,-150.0,0.00045682,30]
[407796249,1772805068581,-150.0,0.00045687,30]
[407796250,1772805068590,-289.50762577,0.000457,120]
[407796251,1772805068599,-178.56416906,0.00045701,30]
[407796252,1772805068608,-159.49661076,0.00045701,30]
[407796253,1772805068617,-237.39121081,0.00045701,30]
[407796254,1772805068626,-150.0,0.00045701,30]
[407796255,1772805068635,-150.0,0.00045701,30]
[407796256,1772805068644,-496.10721813,0.00045701,30]
[407796257,1772805068654,-259.39398879,0.00045701,30]
[407796258,1772805068662,-150.0,0.00045701,30]
[407796259,1772805068672,-196.401106,0.00045701,30]
[407796260,1772805068682,-150.0,0.00045701,30]
[407796261,1772805068691,-150.0,0.00045706,120]
[407796262,1772805068701,-150.0,0.00045714,30]
[407796263,1772805068711,-485.83,0.00045719,120]
[407796264,1772805068720,-178.56416906,0.00045723,30]
[407796265,1772805068729,-159.49661076,0.00045723,30]
[407796266,1772805068738,-237.39121081,0.00045723,30]
[407796267,1772805068750,-496.10721813,0.00045723,30]
[407796268,1772805068760,-259.39398879,0.00045723,30]
[407796269,1772805068769,-196.401106,0.00045723,30]
[407796270,1772805068778,-150.0,0.00045724,30]
[407796271,1772805068788,-150.0,0.00045728,30]
[407796272,1772805068797,-150.0,0.00045739,30]
[407796273,1772805068806,-150.0,0.00045739,30]
[407796274,1772805068815,-150.0,0.00045741,120]
[407796275,1772805068825,-178.56416906,0.00045744,30]
[407796276,1772805068834,-159.49661076,0.00045744,30]
[407796277,1772805068843,-237.39121081,0.00045744,30]
[407796278,1772805068852,-496.10721813,0.00045744,30]
[407796279,1772805068862,-259.39398879,0.00045744,30]
[407796280,1772805068873,-196.401106,0.00045744,30]
[407796281,1772805068882,-150.0,0.00045747,30]
[407796282,1772805068894,-150.0,0.00045752,30]
[407796283,1772805068905,-150.0,0.00045752,30]
[407796284,1772805068915,-1012.98,0.00045753,120]
[407796285,1772805068925,-500.0,0.00045753,120]
[407796286,1772805068937,-500.0,0.00045753,120]
[407796287,1772805068946,-500.0,0.00045753,120]
[407796288,1772805068955,-500.0,0.00045753,120]
[407796289,1772805068967,-500.0,0.00045753,120]
[407796290,1772805068976,-500.0,0.00045753,120]
[407796291,1772805068986,-500.0,0.00045753,120]
[407796292,1772805068997,-233.72718804,0.00045753,120]
[407796293,1772805069007,-915.0,0.00045754,120]
[407796294,1772805069016,-155.78413789,0.00045756,2]
[407796295,1772805069025,-3000.0,0.0004576,60]
[407796296,1772805069035,-1200.0,0.0004576,60]
[407796297,1772805069043,-178.56416906,0.00045766,30]
[407796298,1772805069052,-159.49661076,0.00045766,30]
[407796299,1772805069063,-237.39121081,0.00045766,30]
[407796300,1772805069072,-150.0,0.00045766,30]
[407796301,1772805069083,-496.10721813,0.00045766,30]
[407796302,1772805069092,-259.39398879,0.00045766,30]
[407796303,1772805069103,-196.401106,0.00045766,30]
[407796304,1772805069112,-1001.55,0.00045767,30]
[407796305,1772805069123,-1001.55,0.00045767,30]
[407796306,1772805069133,-1001.55,0.00045767,30]
[407796307,1772805069143,-1001.55,0.00045767,30]
[407796308,1772805069153,-150.0,0.0004577,30]
[407796309,1772805069163,-150.0,0.0004577,30]
[407796310,1772805069173,-178.56416906,0.00045787,30]
[407796311,1772805069182,-159.49661076,0.00045787,30]
[407796312,1772805069191,-237.39121081,0.00045787,30]
[407796313,1772805069201,-496.10721813,0.00045787,30]
[407796314,1772805069211,-259.39398879,0.00045787,30]
[407796315,1772805069221,-196.401106,0.00045787,30]
[407796316,1772805069231,-150.0,0.0004579,30]
[407796317,1772805069241,-150.0,0.0004579,30]
[407796318,1772805069250,-150.0,0.00045793,30]
[407796319,1772805069259,-168.340282,0.00045797,120]
[407796320,1772805069269,-151.0,0.00045797,120]
[407796321,1772805069279,-524.175388,0.00045797,120]
[407796322,1772805069289,-151.0,0.00045797,30]
[407796323,1772805069298,-151.0,0.00045797,120]
[407796324,1772805069308,-151.0,0.00045797,120]
[407796325,1772805069317,-524.175388,0.00045797,120]
[407796326,1772805069327,-151.0,0.00045797,120]
[407796327,1772805069336,-203.715156,0.00045797,30]
[407796328,1772805069345,-151.0,0.00045797,120]
[407796329,1772805069356,-524.175388,0.00045797,120]
[407796330,1772805069365,-151.0,0.00045797,120]
[407796331,1772805069375,-524.175388,0.00045797,120]
[407796332,1772805069385,-151.0,0.00045797,120]
[407796333,1772805069401,-156.892212,0.00045797,120]
[407796334,1772805069415,-150.0,0.00045797,30]
[407796335,1772805069424,-150.0,0.00045797,30]
[407796336,1772805069434,-150.0,0.00045803,30]
[407796337,1772805069443,-178.56416906,0.00045809,30]
[407796338,1772805069452,-159.49661076,0.00045809,30]
[407796339,1772805069463,-237.39121081,0.00045809,30]
[407796340,1772805069472,-496.10721813,0.00045809,30]
[407796341,1772805069481,-259.39398879,0.00045809,30]
[407796342,1772805069491,-196.401106,0.00045809,30]
[407796343,1772805069502,-150.0,0.00045811,30]
[407796344,1772805069511,-150.0,0.00045816,30]
[407796345,1772805069521,-150.0,0.00045828,30]
[407796346,1772805069531,-278.3076083,0.00045829,120]
[407796347,1772805069541,-178.56416906,0.00045831,30]
[407796348,1772805069551,-159.49661076,0.00045831,30]
[407796349,1772805069561,-237.39121081,0.00045831,30]
[407796350,1772805069570,-496.10721813,0.00045831,30]
[407796351,1772805069580,-259.39398879,0.00045831,30]
[407796352,1772805069589,-196.401106,0.00045831,30]
[407796353,1772805069599,-1000.0,0.00045835,2]
[407796354,1772805069609,-150.0,0.00045839,30]
[407796355,1772805069618,-3000.0,0.00045843,60]
[407796356,1772805069628,-152.0,0.0004585,6]
[407796357,1772805069637,-150.0,0.00045852,30]
[407796358,1772805069647,-178.56416906,0.00045852,30]
[407796359,1772805069656,-159.49661076,0.00045852,30]
[407796360,1772805069665,-237.39121081,0.00045852,30]
[407796361,1772805069675,-496.10721813,0.00045852,30]
[407796362,1772805069684,-259.39398879,0.00045852,30]
[407796363,1772805069693,-196.401106,0.00045852,30]
[407796364,1772805069703,-150.0,0.00045854,30]
[407796365,1772805069712,-150.0,0.00045855,30]
[407796366,1772805069721,-150.0,0.00045855,30]
[407796367,1772805069731,-150.0,0.00045862,30]
[407796368,1772805069740,-150.0,0.00045867,30]
[407796369,1772805069750,-278.3076083,0.00045869,120]
[407796370,1772805069759,-1000.0,0.0004587,30]
[407796371,1772805069768,-178.56416906,0.00045874,30]
[407796372,1772805069777,-159.49661076,0.00045874,30]
[407796373,1772805069788,-237.39121081,0.00045874,30]
[407796374,1772805069797,-496.10721813,0.00045874,30]
[407796375,1772805069806,-259.39398879,0.00045874,30]
[407796376,1772805069815,-196.401106,0.00045874,30]
[407796377,1772805069825,-2934.32179539,0.00045879,10]
[407796378,1772805069835,-150.0,0.00045885,30]
[407796379,1772805069845,-746.0,0.00045891,120]
[407796380,1772805069855,-150.0,0.00045893,30]
[407796381,1772805069865,-178.56416906,0.00045896,30]
[407796382,1772805069875,-159.49661076,0.00045896,30]
[407796383,1772805069885,-237.39121081,0.00045896,30]
[407796384,1772805069898,-496.10721813,0.00045896,30]
[407796385,1772805069907,-259.39398879,0.00045896,30]
[407796386,1772805069918,-196.401106,0.00045896,30]
[407796387,1772805069927,-150.0,0.00045905,30]
[407796388,1772805069937,-150.0,0.00045905,30]
[407796389,1772805069947,-150.0,0.00045908,30]
[407796390,1772805069958,-150.0,0.00045913,120]
[407796391,1772805069967,-150.0,0.00045913,30]
[407796392,1772805069977,-150.0,0.00045913,30]
[407796393,1772805069987,-178.56416906,0.00045917,30]
[407796394,1772805069997,-159.49661076,0.00045917,30]
[407796395,1772805070006,-237.39121081,0.00045917,30]
[407796396,1772805070015,-496.10721813,0.00045917,30]
[407796397,1772805070024,-259.39398879,0.00045917,30]
[407796398,1772805070035,-196.401106,0.00045917,30]
[407796399,1772805070044,-219.04510115,0.0004592,120]
[407796400,1772805070054,-150.0,0.00045924,30]
[407796401,1772805070063,-150.0,0.00045931,120]
[407796402,1772805070072,-150.0,0.00045931,30]
[407796403,1772805070082,-150.0,0.00045934,30]
[407796404,1772805070091,-941.64402521,0.00045936,120]
[407796405,1772805070100,-178.56416906,0.00045939,30]
[407796406,1772805070110,-159.49661076,0.00045939,30]
[407796407,1772805070119,-237.39121081,0.00045939,30]
[407796408,1772805070128,-496.10721813,0.00045939,30]
[407796409,1772805070137,-259.39398879,0.00045939,30]
[407796410,1772805070146,-150.0,0.00045939,30]
[407796411,1772805070155,-196.401106,0.00045939,30]
[407796412,1772805070164,-150.0,0.00045943,30]
[407796413,1772805070174,-150.0,0.00045954,30]
[407796414,1772805070183,-150.0,0.00045956,30]
[407796415,1772805070192,-178.56416906,0.00045961,30]
[407796416,1772805070201,-159.49661076,0.00045961,30]
[407796417,1772805070210,-237.39121081,0.00045961,30]
[407796418,1772805070220,-150.0,0.00045961,30]
[407796419,1772805070229,-496.10721813,0.00045961,30]
[407796420,1772805070238,-259.39398879,0.00045961,30]
[407796421,1772805070249,-196.401106,0.00045961,30]
[407796422,1772805070258,-150.0,0.00045971,30]
[407796423,1772805070267,-150.0,0.00045971,30]
[407796424,1772805070277,-150.0,0.00045976,30]
[407796425,1772805070287,-150.0,0.00045977,30]
[407796426,1772805070298,-150.0,0.00045982,30]
[407796427,1772805070307,-178.56416906,0.00045982,30]
[407796428,1772805070316,-159.49661076,0.00045982,30]
[407796429,1772805070325,-237.39121081,0.00045982,30]
[407796430,1772805070335,-496.10721813,0.00045982,30]
[407796431,1772805070347,-259.39398879,0.00045982,30]
[407796432,1772805070356,-196.401106,0.00045982,30]
[407796433,1772805070365,-485.83,0.00045993,120]
[407796434,1772805070376,-150.0,0.00045999,120]
[407796435,1772805070385,-1073.0853127,0.00045999,120]
[407796436,1772805070394,-948.03,0.00046,120]
[407796437,1772805070403,-634.0,0.00046,30]
[407796438,1772805070412,-200.0,0.00046,2]
[407796439,1772805070421,-706.61869086,0.00046,120]
[407796440,1772805070431,-17458.55839771,0.00046,120]
[407796441,1772805070440,-1016.0,0.00046,30]
[407796442,1772805070451,-1000.0,0.00046,120]
[407796443,1772805070460,-500.0,0.00046,120]
[407796444,1772805070469,-500.0,0.00046,120]
[407796445,1772805070478,-45980.02120872,0.00046,120]
[407796446,1772805070487,-22981.79330133,0.00046,60]
[407796447,1772805070499,-7298.69992557,0.00046,120]
[407796448,1772805070508,-450.03529829,0.00046,120]
[407796449,1772805070518,-1000.0,0.00046,30]
[407796450,1772805070527,-306.77047522,0.00046,2]
[407796451,1772805070536,-206.37834406,0.00046,30]
[407796452,1772805070545,-6375.93408259,0.00046,120]
[407796453,1772805070554,-406.36742565,0.00046,120]
[407796454,1772805070563,-517.93966521,0.00046,120]
[407796455,1772805070572,-33795.1620592,0.00046,120]
[407796456,1772805070582,-40363.7330939,0.00046,30]
[407796457,1772805070591,-5821.77930115,0.00046,120]
[407796458,1772805070600,-3858.57903545,0.00046,90]
[407796459,1772805070609,-353.79961881,0.00046,120]
[407796460,1772805070618,-4022.25852486,0.00046,120]
[407796461,1772805070628,-338.31191375,0.00046,120]
[407796462,1772805070637,-521495.41002166,0.00046,10]
[407796463,1772805070648,-10219.08861946,0.00046,120]
[407796464,1772805070657,-1150.4860646,0.00046,120]
[407796465,1772805070666,-265.0,0.00046,7]
[407796466,1772805070676,-320.48470475,0.00046,120]
[407796467,1772805070685,-151.0,0.00046,120]
[407796468,1772805070694,-208.997974,0.00046,120]
[407796469,1772805070703,-208.997974,0.00046,120]
[407796470,1772805070712,-208.997974,0.00046,120]
[407796471,1772805070721,-208.997974,0.00046,120]
[407796472,1772805070730,-151.0,0.00046,120]
[407796473,1772805070739,-151.0,0.00046,120]
[407796474,1772805070749,-151.0,0.00046,120]
[407796475,1772805070759,-151.0,0.00046,120]
[407796476,1772805070768,-151.0,0.00046,120]
[407796477,1772805070777,-209.614812,0.00046,120]
[407796478,1772805070786,-177.699811,0.00046,120]
[407796479,1772805070795,-151.0,0.00046,120]
[407796480,1772805070804,-151.0,0.00046,120]
[407796481,1772805070813,-299.0,0.00046,120]
[407796482,1772805070822,-500.0,0.00046,2]
[407796483,1772805070831,-500.0,0.00046,2]
[407796484,1772805070841,-500.0,0.00046,2]
[407796485,1772805070850,-500.0,0.00046,2]
[407796486,1772805070859,-151.0,0.00046,120]
[407796487,1772805070867,-161.982968,0.00046,120]
[407796488,1772805070876,-151.0,0.00046,120]
[407796489,1772805070886,-151.0,0.00046,120]
[407796490,1772805070897,-151.0,0.00046,120]
[407796491,1772805070908,-152.832046,0.00046,120]
[407796492,1772805070917,-1000.0,0.00046,120]
[407796493,1772805070926,-1000.0,0.00046,120]
[407796494,1772805070938,-1000.0,0.00046,120]
[407796495,1772805070947,-1000.0,0.00046,120]
[407796496,1772805070956,-1040.52835704,0.00046,120]
[407796497,1772805070966,-156.498517,0.00046,120]
[407796498,1772805070978,-151.0,0.00046,120]
[407796499,1772805070987,-155.11002,0.00046,120]
[407796500,1772805070999,-1001.307878,0.00046,120]
[407796501,1772805071008,-1001.307878,0.00046,120]
[407796502,1772805071018,-1001.307878,0.00046,120]
[407796503,1772805071027,-1001.307878,0.00046,120]
[407796504,1772805071036,-150.0,0.00046001,30]
[407796505,1772805071045,-178.56416906,0.00046004,30]
[407796506,1772805071054,-159.49661076,0.00046004,30]
[407796507,1772805071064,-237.39121081,0.00046004,30]
[407796508,1772805071073,-496.10721813,0.00046004,30]
[407796509,1772805071082,-259.39398879,0.00046004,30]
[407796510,1772805071092,-196.401106,0.00046004,30]
[407796511,1772805071101,-150.0,0.00046007,30]
[407796512,1772805071110,-150.0,0.00046017,30]
[407796513,1772805071119,-150.0,0.0004602,30]
[407796514,1772805071128,-150.0,0.00046024,30]
[407796515,1772805071137,-178.56416906,0.00046026,30]
[407796516,1772805071147,-159.49661076,0.00046026,30]
[407796517,1772805071156,-237.39121081,0.00046026,30]
[407796518,1772805071165,-496.10721813,0.00046026,30]
[407796519,1772805071174,-259.39398879,0.00046026,30]
[407796520,1772805071183,-196.401106,0.00046026,30]
[407796521,1772805071193,-915.0,0.00046028,120]
[407796522,1772805071202,-150.0,0.00046029,30]
[407796523,1772805071211,-150.0,0.00046029,30]
[407796524,1772805071221,-155.78413789,0.0004603,2]
[407796525,1772805071230,-1000.0,0.00046032,120]
[407796526,1772805071239,-1000.0,0.00046032,120]
[407796527,1772805071249,-1000.0,0.00046032,120]
[407796528,1772805071259,-1000.0,0.00046032,120]
[407796529,1772805071268,-1040.52835704,0.00046032,120]
[407796530,1772805071277,-278.3076083,0.0004604,120]
[407796531,1772805071287,-1001.55,0.00046041,30]
[407796532,1772805071411,-1001.55,0.00046041,30]
[407796533,1772805071420,-150.0,0.00046047,30]
[407796534,1772805071429,-178.56416906,0.00046047,30]
[407796535,1772805071440,-159.49661076,0.00046047,30]
[407796536,1772805071449,-237.39121081,0.00046047,30]
[407796537,1772805071458,-496.10721813,0.00046047,30]
[407796538,1772805071467,-259.39398879,0.00046047,30]
[407796539,1772805071476,-196.401106,0.00046047,30]
[407796540,1772805071486,-150.0,0.00046058,30]
[407796541,1772805071496,-150.0,0.00046058,30]
[407796542,1772805071506,-150.0,0.00046058,30]
[407796543,1772805071515,-150.0,0.00046058,30]
[407796544,1772805071524,-150.0,0.00046058,30]
[407796545,1772805071534,-178.56416906,0.00046069,30]
[407796546,1772805071544,-159.49661076,0.00046069,30]
[407796547,1772805071553,-237.39121081,0.00046069,30]
[407796548,1772805071562,-496.10721813,0.00046069,30]
[407796549,1772805071571,-259.39398879,0.00046069,30]
[407796550,1772805071581,-196.401106,0.00046069,30]
[407796551,1772805071591,-150.0,0.0004607,30]
[407796552,1772805071600,-155.51231892,0.00046081,120]
[407796553,1772805071610,-150.0,0.00046083,120]
[407796554,1772805071619,-150.0,0.00046087,30]
[407796555,1772805071628,-150.0,0.00046087,30]
[407796556,1772805071637,-178.56416906,0.00046091,30]
[407796557,1772805071647,-159.49661076,0.00046091,30]
[407796558,1772805071656,-237.39121081,0.00046091,30]
[407796559,1772805071665,-496.10721813,0.00046091,30]
[407796560,1772805071674,-259.39398879,0.00046091,30]
[407796561,1772805071683,-196.401106,0.00046091,30]
[407796562,1772805071692,-150.0,0.00046093,30]
[407796563,1772805071701,-150.0,0.00046096,30]
[407796564,1772805071711,-150.0,0.00046099,30]
[407796565,1772805071720,-28295.41966609,0.000461,120]
[407796566,1772805071729,-10695.0,0.000461,120]
[407796567,1772805071738,-10300.0,0.000461,120]
[407796568,1772805071749,-500.0,0.000461,120]
[407796569,1772805071758,-150.0,0.00046109,30]
[407796570,1772805071767,-178.56416906,0.00046112,30]
[407796571,1772805071777,-159.49661076,0.00046112,30]
[407796572,1772805071786,-237.39121081,0.00046112,30]
[407796573,1772805071795,-496.10721813,0.00046112,30]
[407796574,1772805071804,-259.39398879,0.00046112,30]
[407796575,1772805071814,-196.401106,0.00046112,30]
[407796576,1772805071823,-150.0,0.00046116,30]
[407796577,1772805071833,-549.11213581,0.00046131,120]
[407796578,1772805071843,-250.10563081,0.00046133,7]
[407796579,1772805071852,-178.56416906,0.00046134,30]
[407796580,1772805071862,-159.49661076,0.00046134,30]
[407796581,1772805071871,-237.39121081,0.00046134,30]
[407796582,1772805071881,-496.10721813,0.00046134,30]
[407796583,1772805071893,-259.39398879,0.00046134,30]
[407796584,1772805071903,-196.401106,0.00046134,30]
[407796585,1772805071913,-150.0,0.00046135,30]
[407796586,1772805071923,-150.0,0.00046139,30]
[407796587,1772805071932,-150.0,0.00046141,30]
[407796588,1772805071942,-151.0,0.00046143,10]
[407796589,1772805071951,-151.0,0.00046143,10]
[407796590,1772805071962,-151.0,0.00046143,10]
[407796591,1772805071971,-151.0,0.00046143,10]
[407796592,1772805071981,-151.0,0.00046143,10]
[407796593,1772805071990,-151.0,0.00046143,10]
[407796594,1772805071999,-151.0,0.00046143,10]
[407796595,1772805072008,-151.0,0.00046143,10]
[407796596,1772805072018,-151.0,0.00046143,10]
[407796597,1772805072027,-151.0,0.00046143,10]
[407796598,1772805072036,-151.0,0.00046143,10]
[407796599,1772805072045,-151.0,0.00046143,10]
[407796600,1772805072054,-151.0,0.00046143,10]
[407796601,1772805072063,-151.0,0.00046143,10]
[407796602,1772805072071,-151.0,0.00046143,10]
[407796603,1772805072080,-151.0,0.00046143,10]
[407796604,1772805072089,-151.0,0.00046143,10]
[407796605,1772805072098,-151.0,0.00046143,10]
[407796606,1772805072107,-151.0,0.00046143,10]
[407796607,1772805072116,-151.0,0.00046143,10]
[407796608,1772805072125,-151.0,0.00046143,10]
[407796609,1772805072133,-151.0,0.00046143,10]
[407796610,1772805072143,-151.0,0.00046143,10]
[407796611,1772805072152,-151.0,0.00046143,10]
[407796612,1772805072161,-151.0,0.00046143,10]
[407796613,1772805072172,-151.0,0.00046143,10]
[407796614,1772805072180,-151.0,0.00046143,10]
[407796615,1772805072190,-151.0,0.00046143,10]
[407796616,1772805072200,-151.0,0.00046143,10]
[407796617,1772805072209,-151.0,0.00046143,10]
[407796618,1772805072218,-151.0,0.00046143,10]
[407796619,1772805072228,-151.0,0.00046143,10]
[407796620,1772805072237,-151.0,0.00046143,10]
[407796621,1772805072248,-151.0,0.00046143,10]
[407796622,1772805072257,-151.0,0.00046143,10]
[407796623,1772805072267,-212.0,0.00046143,10]
[407796624,1772805072276,-150.0,0.00046143,10]
[407796625,1772805072285,-150.0,0.00046143,10]
[407796626,1772805072294,-150.0,0.00046143,10]
[407796627,1772805072304,-150.0,0.00046143,10]
[407796628,1772805072313,-150.0,0.00046143,10]
[407796629,1772805072323,-150.0,0.00046143,10]
[407796630,1772805072332,-150.0,0.00046143,10]
[407796631,1772805072341,-150.0,0.00046143,10]
[407796632,1772805072351,-150.0,0.00046143,10]
[407796633,1772805072360,-150.0,0.00046143,10]
[407796634,1772805072369,-150.0,0.00046143,10]
[407796635,1772805072378,-150.0,0.00046143,10]
[407796636,1772805072387,-150.0,0.00046143,10]
[407796637,1772805072396,-150.0,0.00046143,10]
[407796638,1772805072405,-150.0,0.00046143,10]
[407796639,1772805072414,-150.0,0.00046143,10]
[407796640,1772805072423,-150.0,0.00046143,10]
[407796641,1772805072432,-150.0,0.00046143,10]
[407796642,1772805072442,-150.0,0.00046143,10]
[407796643,1772805072451,-150.0,0.00046143,10]
[407796644,1772805072460,-273.0,0.00046143,10]
[407796645,1772805072469,-151.0,0.00046143,10]
[407796646,1772805072479,-151.0,0.00046143,10]
[407796647,1772805072488,-151.0,0.00046143,10]
[407796648,1772805072499,-151.0,0.00046143,10]
[407796649,1772805072508,-151.0,0.00046143,10]
[407796650,1772805072517,-151.0,0.00046143,10]
[407796651,1772805072527,-151.0,0.00046143,10]
[407796652,1772805072536,-151.0,0.00046143,10]
[407796653,1772805072546,-151.0,0.00046143,10]
[407796654,1772805072557,-151.0,0.00046143,10]
[407796655,1772805072566,-151.0,0.00046143,10]
[407796656,1772805072576,-151.0,0.00046143,10]
[407796657,1772805072586,-151.0,0.00046143,10]
[407796658,1772805072596,-151.0,0.00046143,10]
[407796659,1772805072605,-151.0,0.00046143,10]
[407796660,1772805072614,-151.0,0.00046143,10]
[407796661,1772805072623,-151.0,0.00046143,10]
[407796662,1772805072633,-151.0,0.00046143,10]
[407796663,1772805072642,-151.0,0.00046143,10]
[407796664,1772805072651,-151.0,0.00046143,10]
[407796665,1772805072660,-1000.0,0.00046144,30]
[407796666,1772805072669,-150.0,0.00046145,30]
[407796667,1772805072679,-150.0,0.00046145,30]
[407796668,1772805072688,-178.56416906,0.00046156,30]
[407796669,1772805072698,-159.49661076,0.00046156,30]
[407796670,1772805072707,-237.39121081,0.00046156,30]
[407796671,1772805072716,-150.0,0.00046156,30]
[407796672,1772805072726,-496.10721813,0.00046156,30]